[Event "Late-Titled-Tuesday-Blitz-July-09-2024"]
[Site "Chess.com"]
[Date "2024.07.09"]
[Round "1"]
[White "Lector118"]
[Black "NovakRatko"]
[Result "1-0"]
[WhiteElo "2674"]
[BlackElo "2357"]
[TimeControl "180+1"]
[EndTime "14:07:39 PDT"]
[Termination "Lector118 won on time"]

1. d4 {[%clk 0:02:59.6]} 1... d5 {[%clk 0:02:59.8]} 2. Bf4 {[%clk 0:02:57.9]}
2... c5 {[%clk 0:03:00]} 3. e4 {[%clk 0:02:57.1]} 3... dxe4 {[%clk 0:02:37.5]}
4. d5 {[%clk 0:02:58]} 4... Nf6 {[%clk 0:02:37]} 5. Nc3 {[%clk 0:02:57.4]} 5...
a6 {[%clk 0:02:36]} 6. Nge2 {[%clk 0:02:52.6]} 6... e6 {[%clk 0:02:35.8]} 7.
dxe6 {[%clk 0:02:50.3]} 7... Qxd1+ {[%clk 0:02:35.2]} 8. Rxd1 {[%clk 0:02:51.2]}
8... Bxe6 {[%clk 0:02:35.7]} 9. Ng3 {[%clk 0:02:49.8]} 9... Be7 {[%clk
0:02:26.9]} 10. Ngxe4 {[%clk 0:02:49.2]} 10... O-O {[%clk 0:02:24.1]} 11. Be2
{[%clk 0:02:47.2]} 11... Nc6 {[%clk 0:02:23.6]} 12. Be3 {[%clk 0:02:33.2]} 12...
b6 {[%clk 0:02:13.8]} 13. O-O {[%clk 0:02:31.3]} 13... Nxe4 {[%clk 0:02:09]} 14.
Nxe4 {[%clk 0:02:32.2]} 14... Bf5 {[%clk 0:02:07.2]} 15. Nc3 {[%clk 0:02:11.1]}
15... Bxc2 {[%clk 0:02:03.8]} 16. Rd7 {[%clk 0:02:03.4]} 16... Bf5 {[%clk
0:01:57.6]} 17. Rc7 {[%clk 0:02:02.3]} 17... Rfc8 {[%clk 0:01:56.8]} 18. Rxc8+
{[%clk 0:01:55.7]} 18... Bxc8 {[%clk 0:01:56.6]} 19. Rd1 {[%clk 0:01:52.4]}
19... Be6 {[%clk 0:01:55.2]} 20. Bf3 {[%clk 0:01:50.2]} 20... Rc8 {[%clk
0:01:49.8]} 21. Na4 {[%clk 0:01:38.3]} 21... Nd4 {[%clk 0:00:54.2]} 22. Nxb6
{[%clk 0:01:10.4]} 22... Nxf3+ {[%clk 0:00:50]} 23. gxf3 {[%clk 0:01:10]} 23...
Rb8 {[%clk 0:00:50.1]} 24. Nd5 {[%clk 0:01:00.7]} 24... Bh4 {[%clk 0:00:42]} 25.
b3 {[%clk 0:00:44.1]} 25... Rd8 {[%clk 0:00:26.5]} 26. Nc3 {[%clk 0:00:44.3]}
26... Rc8 {[%clk 0:00:21.4]} 27. Rd6 {[%clk 0:00:41.1]} 27... c4 {[%clk
0:00:19.2]} 28. b4 {[%clk 0:00:38.3]} 28... Be7 {[%clk 0:00:16.4]} 29. Rb6
{[%clk 0:00:34.2]} 29... Bh3 {[%clk 0:00:09.3]} 30. f4 {[%clk 0:00:24.2]} 30...
Rd8 {[%clk 0:00:08.3]} 31. f3 {[%clk 0:00:24.5]} 31... h6 {[%clk 0:00:07.7]} 32.
Kf2 {[%clk 0:00:23.5]} 32... Rd3 {[%clk 0:00:08]} 33. Ne4 {[%clk 0:00:21.9]}
33... Ra3 {[%clk 0:00:08]} 34. Rc6 {[%clk 0:00:21.8]} 34... Rxa2+ {[%clk
0:00:07.9]} 35. Kg3 {[%clk 0:00:21.9]} 35... Be6 {[%clk 0:00:08.4]} 36. Nc5
{[%clk 0:00:15]} 36... Bd5 {[%clk 0:00:06.9]} 37. Rc7 {[%clk 0:00:14]} 37... Bf6
{[%clk 0:00:04.2]} 38. Nd7 {[%clk 0:00:12.2]} 38... Ra4 {[%clk 0:00:01.9]} 39.
Bc5 {[%clk 0:00:09.1]} 39... Ra3 {[%clk 0:00:01.4]} 40. Rc8+ {[%clk 0:00:09.6]}
40... Kh7 {[%clk 0:00:01.1]} 41. Nf8+ {[%clk 0:00:10.1]} 1-0

[Event "Late-Titled-Tuesday-Blitz-July-09-2024"]
[Site "Chess.com"]
[Date "2024.07.09"]
[Round "1"]
[White "Brown_Mamba24"]
[Black "dropstoneDP"]
[Result "1/2-1/2"]
[WhiteElo "2517"]
[BlackElo "3027"]
[TimeControl "180+1"]
[EndTime "14:07:42 PDT"]
[Termination "Game drawn - insufficient material"]

1. d4 {[%clk 0:03:00.9]} 1... d5 {[%clk 0:02:55.7]} 2. Nf3 {[%clk 0:03:00.9]}
2... Nf6 {[%clk 0:02:54.4]} 3. c4 {[%clk 0:03:01.2]} 3... dxc4 {[%clk
0:02:55.3]} 4. e3 {[%clk 0:02:59.4]} 4... e6 {[%clk 0:02:49.8]} 5. Bxc4 {[%clk
0:02:59.3]} 5... a6 {[%clk 0:02:50.3]} 6. a4 {[%clk 0:02:58.8]} 6... Be7 {[%clk
0:02:50]} 7. O-O {[%clk 0:02:58.9]} 7... O-O {[%clk 0:02:49.7]} 8. Nc3 {[%clk
0:02:59.1]} 8... c5 {[%clk 0:02:48.3]} 9. d5 {[%clk 0:02:56.2]} 9... exd5 {[%clk
0:02:46.2]} 10. Nxd5 {[%clk 0:02:56.4]} 10... Nxd5 {[%clk 0:02:45.7]} 11. Bxd5
{[%clk 0:02:55.4]} 11... Nc6 {[%clk 0:02:46.1]} 12. e4 {[%clk 0:02:53.4]} 12...
Bg4 {[%clk 0:02:34.1]} 13. h3 {[%clk 0:02:53.2]} 13... Bh5 {[%clk 0:02:32.7]}
14. Bxc6 {[%clk 0:02:46.5]} 14... bxc6 {[%clk 0:02:33.6]} 15. Qxd8 {[%clk
0:02:45.9]} 15... Rfxd8 {[%clk 0:02:33.5]} 16. Ne5 {[%clk 0:02:45.8]} 16... Bf6
{[%clk 0:02:30]} 17. Nxc6 {[%clk 0:02:39.9]} 17... Rdc8 {[%clk 0:02:29.1]} 18.
e5 {[%clk 0:02:29.9]} 18... Bh4 {[%clk 0:02:25.1]} 19. Na5 {[%clk 0:02:22.5]}
19... Bd8 {[%clk 0:02:16.6]} 20. Nc4 {[%clk 0:02:15.3]} 20... Be2 {[%clk
0:02:12.2]} 21. Nd6 {[%clk 0:02:15.4]} 21... Rcb8 {[%clk 0:02:04.3]} 22. Re1
{[%clk 0:02:14.1]} 22... Bd3 {[%clk 0:02:04.7]} 23. Ra3 {[%clk 0:02:12.2]} 23...
c4 {[%clk 0:02:03.2]} 24. e6 {[%clk 0:01:58.3]} 24... fxe6 {[%clk 0:02:00.4]}
25. Rxe6 {[%clk 0:01:59.2]} 25... Bf6 {[%clk 0:01:58.4]} 26. Ne4 {[%clk
0:01:34.6]} 26... Bxb2 {[%clk 0:01:53.3]} 27. Bxb2 {[%clk 0:01:31.4]} 27... Rxb2
{[%clk 0:01:54.2]} 28. Nc5 {[%clk 0:01:31]} 28... Rd8 {[%clk 0:01:46.1]} 29. Re3
{[%clk 0:01:09.2]} 29... Rd2 {[%clk 0:01:33.4]} 30. Ne6 {[%clk 0:01:02.7]} 30...
Re8 {[%clk 0:01:21.2]} 31. Rc3 {[%clk 0:00:48.6]} 31... h6 {[%clk 0:01:05.5]}
32. Nc5 {[%clk 0:00:27.1]} 32... Rxe3 {[%clk 0:01:03.8]} 33. fxe3 {[%clk
0:00:28]} 33... a5 {[%clk 0:01:01.1]} 34. Nxd3 {[%clk 0:00:19.6]} 34... cxd3
{[%clk 0:01:02]} 35. Rc8+ {[%clk 0:00:08]} 35... Kf7 {[%clk 0:00:59.8]} 36. Rd8
{[%clk 0:00:08.9]} 36... Ke6 {[%clk 0:00:59.8]} 37. Rd4 {[%clk 0:00:07.9]} 37...
Ke5 {[%clk 0:00:59.4]} 38. Kh2 {[%clk 0:00:08.4]} 38... h5 {[%clk 0:00:57.9]}
39. Kg3 {[%clk 0:00:08.7]} 39... g5 {[%clk 0:00:57.9]} 40. h4 {[%clk 0:00:08.6]}
40... gxh4+ {[%clk 0:00:57.4]} 41. Kxh4 {[%clk 0:00:08.6]} 41... Rxg2 {[%clk
0:00:57]} 42. Rxd3 {[%clk 0:00:08.7]} 42... Rg4+ {[%clk 0:00:57.2]} 43. Kxh5
{[%clk 0:00:08.6]} 43... Rxa4 {[%clk 0:00:57.7]} 44. Rb3 {[%clk 0:00:08.3]}
44... Rb4 {[%clk 0:00:55.5]} 45. Ra3 {[%clk 0:00:08]} 45... a4 {[%clk
0:00:56.1]} 46. Kg5 {[%clk 0:00:08.3]} 46... Rc4 {[%clk 0:00:54.1]} 47. Kg6
{[%clk 0:00:07.1]} 47... Rc6+ {[%clk 0:00:47.7]} 48. Kg5 {[%clk 0:00:07.4]}
48... Ra6 {[%clk 0:00:45.9]} 49. Kg4 {[%clk 0:00:07.2]} 49... Kd5 {[%clk
0:00:44.6]} 50. Kf4 {[%clk 0:00:07.3]} 50... Kc4 {[%clk 0:00:42.3]} 51. e4
{[%clk 0:00:06.9]} 51... Kb4 {[%clk 0:00:43]} 52. Ra1 {[%clk 0:00:06.8]} 52...
a3 {[%clk 0:00:42.8]} 53. e5 {[%clk 0:00:07.1]} 53... Kc3 {[%clk 0:00:40.3]} 54.
Kf5 {[%clk 0:00:07.4]} 54... Kb2 {[%clk 0:00:40.9]} 55. Re1 {[%clk 0:00:05.4]}
55... a2 {[%clk 0:00:40.9]} 56. e6 {[%clk 0:00:05.7]} 56... Ra7 {[%clk
0:00:37.6]} 57. Kf6 {[%clk 0:00:05.1]} 57... Ra6 {[%clk 0:00:37.9]} 58. Kf7
{[%clk 0:00:05.2]} 58... Ra7+ {[%clk 0:00:38.4]} 59. e7 {[%clk 0:00:05.6]} 59...
a1=Q {[%clk 0:00:38.7]} 60. Rxa1 {[%clk 0:00:05.4]} 60... Kxa1 {[%clk
0:00:39.6]} 61. Kf8 {[%clk 0:00:05.1]} 61... Rxe7 {[%clk 0:00:39.7]} 62. Kxe7
{[%clk 0:00:05.7]} 1/2-1/2

[Event "Late-Titled-Tuesday-Blitz-July-09-2024"]
[Site "Chess.com"]
[Date "2024.07.09"]
[Round "1"]
[White "JanMur7"]
[Black "dennisodessa"]
[Result "1-0"]
[WhiteElo "2302"]
[BlackElo "2605"]
[TimeControl "180+1"]
[EndTime "14:07:46 PDT"]
[Termination "JanMur7 won on time"]

1. c4 {[%clk 0:03:00.9]} 1... e5 {[%clk 0:02:32.1]} 2. Nc3 {[%clk 0:03:00.7]}
2... Nf6 {[%clk 0:02:31]} 3. Nf3 {[%clk 0:03:01]} 3... Nc6 {[%clk 0:02:30.9]} 4.
e4 {[%clk 0:03:00.3]} 4... Bb4 {[%clk 0:02:28.7]} 5. d3 {[%clk 0:02:59.9]} 5...
h6 {[%clk 0:02:25.8]} 6. Be2 {[%clk 0:02:59.1]} 6... O-O {[%clk 0:02:25.9]} 7.
O-O {[%clk 0:02:58.3]} 7... d6 {[%clk 0:02:26.5]} 8. Nd5 {[%clk 0:02:57.9]} 8...
Bc5 {[%clk 0:02:26.8]} 9. a3 {[%clk 0:02:53.2]} 9... a5 {[%clk 0:02:23]} 10. Be3
{[%clk 0:02:46.6]} 10... Nd4 {[%clk 0:02:17.9]} 11. Nxd4 {[%clk 0:02:41.1]}
11... Bxd4 {[%clk 0:02:17.3]} 12. Bxd4 {[%clk 0:02:40.8]} 12... exd4 {[%clk
0:02:18.2]} 13. Nxf6+ {[%clk 0:02:40.2]} 13... Qxf6 {[%clk 0:02:17.2]} 14. Bg4
{[%clk 0:02:40.4]} 14... a4 {[%clk 0:02:09.9]} 15. Bxc8 {[%clk 0:02:36.8]} 15...
Rfxc8 {[%clk 0:02:10.8]} 16. f4 {[%clk 0:02:36]} 16... Ra6 {[%clk 0:02:06]} 17.
Rb1 {[%clk 0:02:19.4]} 17... Rb8 {[%clk 0:02:03.9]} 18. b4 {[%clk 0:02:18.1]}
18... axb3 {[%clk 0:01:57.1]} 19. Rxb3 {[%clk 0:02:17.9]} 19... b6 {[%clk
0:01:57.2]} 20. g3 {[%clk 0:01:56.4]} 20... Rba8 {[%clk 0:01:58.1]} 21. Qc1
{[%clk 0:01:53.9]} 21... Ra5 {[%clk 0:01:20.7]} 22. Kg2 {[%clk 0:01:48.6]} 22...
Qg6 {[%clk 0:01:09.4]} 23. Qb2 {[%clk 0:01:39.8]} 23... Qf6 {[%clk 0:00:55.1]}
24. Ra1 {[%clk 0:01:35.9]} 24... g5 {[%clk 0:00:50.4]} 25. Rf1 {[%clk
0:01:30.5]} 25... Qg7 {[%clk 0:00:45.3]} 26. f5 {[%clk 0:01:27.8]} 26... Qe5
{[%clk 0:00:42.8]} 27. Ra1 {[%clk 0:01:18.4]} 27... Qc5 {[%clk 0:00:31.1]} 28.
Rb4 {[%clk 0:01:13.1]} 28... f6 {[%clk 0:00:13.1]} 29. a4 {[%clk 0:01:10.2]}
29... Kg7 {[%clk 0:00:09.7]} 30. Qb3 {[%clk 0:00:44.5]} 30... Qc6 {[%clk
0:00:07.8]} 31. Rb5 {[%clk 0:00:38.7]} 31... Rxb5 {[%clk 0:00:06.4]} 32. axb5
{[%clk 0:00:36.5]} 32... Qb7 {[%clk 0:00:06.8]} 33. Ra4 {[%clk 0:00:35.8]} 33...
Rxa4 {[%clk 0:00:03.4]} 34. Qxa4 {[%clk 0:00:36.7]} 34... Kf7 {[%clk 0:00:02.8]}
35. Qa2 {[%clk 0:00:32.7]} 35... Ke7 {[%clk 0:00:01.3]} 36. c5 {[%clk
0:00:20.8]} 36... bxc5 {[%clk 0:00:02.2]} 37. Qe6+ {[%clk 0:00:20.3]} 37... Kd8
{[%clk 0:00:02.4]} 38. Qxf6+ {[%clk 0:00:20.8]} 38... Kc8 {[%clk 0:00:02.8]} 39.
Qf8+ {[%clk 0:00:16.1]} 39... Kd7 {[%clk 0:00:02.9]} 40. Qf7+ {[%clk 0:00:17]}
40... Kd8 {[%clk 0:00:02.5]} 41. f6 {[%clk 0:00:09.4]} 41... Qxb5 {[%clk
0:00:02.9]} 42. Qe7+ {[%clk 0:00:08.3]} 42... Kc8 {[%clk 0:00:03.5]} 43. f7
{[%clk 0:00:08.4]} 43... Qb2+ {[%clk 0:00:01.3]} 44. Kf3 {[%clk 0:00:08.4]} 1-0

[Event "Late-Titled-Tuesday-Blitz-July-09-2024"]
[Site "Chess.com"]
[Date "2024.07.09"]
[Round "1"]
[White "Road2GM3000"]
[Black "Wizard_97"]
[Result "0-1"]
[WhiteElo "2400"]
[BlackElo "2724"]
[TimeControl "180+1"]
[EndTime "14:07:54 PDT"]
[Termination "Wizard_97 won by resignation"]

1. d4 {[%clk 0:02:59.4]} 1... d5 {[%clk 0:02:58.9]} 2. c4 {[%clk 0:02:57]} 2...
c6 {[%clk 0:02:59.3]} 3. Nc3 {[%clk 0:02:56.6]} 3... a6 {[%clk 0:02:59.6]} 4.
cxd5 {[%clk 0:02:56.7]} 4... cxd5 {[%clk 0:03:00]} 5. Nf3 {[%clk 0:02:57.4]}
5... Nf6 {[%clk 0:03:00.2]} 6. Bg5 {[%clk 0:02:56.4]} 6... Ne4 {[%clk
0:02:59.4]} 7. Bf4 {[%clk 0:02:56.5]} 7... Nc6 {[%clk 0:02:57.1]} 8. e3 {[%clk
0:02:57]} 8... Bf5 {[%clk 0:02:47.9]} 9. Bd3 {[%clk 0:02:55.3]} 9... Nxc3 {[%clk
0:02:44.4]} 10. bxc3 {[%clk 0:02:56.2]} 10... Bg6 {[%clk 0:02:41.7]} 11. O-O
{[%clk 0:02:56]} 11... e6 {[%clk 0:02:42]} 12. c4 {[%clk 0:02:53.1]} 12... Be7
{[%clk 0:02:40.2]} 13. cxd5 {[%clk 0:02:52.6]} 13... Qxd5 {[%clk 0:02:39.8]} 14.
Rb1 {[%clk 0:02:38]} 14... O-O {[%clk 0:02:36.4]} 15. Bxg6 {[%clk 0:02:24.7]}
15... hxg6 {[%clk 0:02:36.4]} 16. Rxb7 {[%clk 0:02:25.1]} 16... Qxa2 {[%clk
0:02:32.1]} 17. Ne5 {[%clk 0:01:56.3]} 17... Nxe5 {[%clk 0:02:11.5]} 18. Bxe5
{[%clk 0:01:56.4]} 18... Rfe8 {[%clk 0:02:12.1]} 19. Qf3 {[%clk 0:01:45.9]}
19... Rad8 {[%clk 0:01:42.7]} 20. Qc6 {[%clk 0:01:26.7]} 20... a5 {[%clk
0:01:42.6]} 21. Ra7 {[%clk 0:01:25.6]} 21... Qd5 {[%clk 0:01:08.4]} 22. Qa6
{[%clk 0:01:17.9]} 22... Bb4 {[%clk 0:01:03.8]} 23. h3 {[%clk 0:01:12]} 23...
Ra8 {[%clk 0:01:02.2]} 24. Rc1 {[%clk 0:01:06.8]} 24... Rxa7 {[%clk 0:01:00.2]}
25. Qxa7 {[%clk 0:01:07.7]} 25... Ra8 {[%clk 0:01:00.2]} 26. Qc7 {[%clk
0:00:55.8]} 26... a4 {[%clk 0:00:59.3]} 27. Rc6 {[%clk 0:00:44.8]} 27... a3
{[%clk 0:00:57.3]} 28. Qb7 {[%clk 0:00:45.1]} 28... Qa5 {[%clk 0:00:30]} 29.
Rxe6 {[%clk 0:00:32.1]} 29... a2 {[%clk 0:00:25.3]} 30. Rxg6 {[%clk 0:00:32.7]}
30... a1=Q+ {[%clk 0:00:24.6]} 31. Kh2 {[%clk 0:00:33.4]} 31... Qxe5+ {[%clk
0:00:24.5]} 32. dxe5 {[%clk 0:00:33.1]} 32... Qxe5+ {[%clk 0:00:24.9]} 33. f4
{[%clk 0:00:30.1]} 33... Qb8 {[%clk 0:00:11.9]} 34. Qd5 {[%clk 0:00:25.2]} 34...
Ra5 {[%clk 0:00:09.3]} 35. Qc4 {[%clk 0:00:22.3]} 35... Rc5 {[%clk 0:00:08.3]}
36. Qa2 {[%clk 0:00:22.9]} 36... Rc3 {[%clk 0:00:06.3]} 37. Rg3 {[%clk
0:00:22.9]} 37... Bd6 {[%clk 0:00:03.5]} 38. Qd5 {[%clk 0:00:23]} 38... Rc5
{[%clk 0:00:03.6]} 39. Qe4 {[%clk 0:00:22.1]} 39... Qf8 {[%clk 0:00:04.5]} 40.
Rf3 {[%clk 0:00:21.8]} 40... Rc7 {[%clk 0:00:04.9]} 41. Rf2 {[%clk 0:00:22.3]}
41... Re7 {[%clk 0:00:05.5]} 42. Qf3 {[%clk 0:00:23.1]} 42... Qd8 {[%clk
0:00:05.7]} 43. e4 {[%clk 0:00:23.6]} 43... f6 {[%clk 0:00:06.1]} 44. g3 {[%clk
0:00:24]} 44... Qe8 {[%clk 0:00:06]} 45. Re2 {[%clk 0:00:24.6]} 45... Qf7 {[%clk
0:00:06.2]} 46. Qd3 {[%clk 0:00:24.8]} 46... Qe6 {[%clk 0:00:06.5]} 47. Rd2
{[%clk 0:00:25.3]} 47... Bc7 {[%clk 0:00:05.9]} 48. Re2 {[%clk 0:00:24.5]} 48...
Qc6 {[%clk 0:00:06.5]} 49. Qb3+ {[%clk 0:00:24.5]} 49... Qe6 {[%clk 0:00:06.5]}
50. Qf3 {[%clk 0:00:25.1]} 50... Rd7 {[%clk 0:00:07]} 51. Qc3 {[%clk 0:00:23.8]}
51... Qe7 {[%clk 0:00:06.4]} 52. Qb3+ {[%clk 0:00:23.6]} 52... Qf7 {[%clk
0:00:06.7]} 53. Qf3 {[%clk 0:00:24.2]} 53... Qe8 {[%clk 0:00:07.2]} 54. Qg4
{[%clk 0:00:24.6]} 54... Qd8 {[%clk 0:00:07.1]} 55. h4 {[%clk 0:00:24.9]} 55...
Rd2 {[%clk 0:00:07.3]} 56. Kh3 {[%clk 0:00:24.7]} 56... Rxe2 {[%clk 0:00:07.4]}
57. Qxe2 {[%clk 0:00:25.6]} 57... Qd7+ {[%clk 0:00:08.1]} 58. Kh2 {[%clk
0:00:24.5]} 58... Qc6 {[%clk 0:00:08.7]} 59. Qa2+ {[%clk 0:00:24.6]} 59... Kh8
{[%clk 0:00:09.1]} 60. Kh3 {[%clk 0:00:23.1]} 60... Qxe4 {[%clk 0:00:08.6]} 61.
Qa8+ {[%clk 0:00:22]} 61... Qxa8 {[%clk 0:00:08.2]} 0-1

[Event "Late-Titled-Tuesday-Blitz-July-09-2024"]
[Site "Chess.com"]
[Date "2024.07.09"]
[Round "1"]
[White "mind1mover"]
[Black "ural58"]
[Result "1/2-1/2"]
[WhiteElo "2818"]
[BlackElo "2453"]
[TimeControl "180+1"]
[EndTime "14:07:57 PDT"]
[Termination "Game drawn by repetition"]

1. Nf3 {[%clk 0:02:59.6]} 1... d5 {[%clk 0:02:59]} 2. e3 {[%clk 0:02:59.1]} 2...
Nc6 {[%clk 0:02:57.9]} 3. Bb5 {[%clk 0:02:57.2]} 3... Bg4 {[%clk 0:02:55.4]} 4.
h3 {[%clk 0:02:49.3]} 4... Bxf3 {[%clk 0:02:54.6]} 5. Bxc6+ {[%clk 0:02:49.1]}
5... bxc6 {[%clk 0:02:53.9]} 6. Qxf3 {[%clk 0:02:49.7]} 6... e5 {[%clk
0:02:53.6]} 7. c4 {[%clk 0:02:42]} 7... e4 {[%clk 0:02:49.6]} 8. Qe2 {[%clk
0:02:38.7]} 8... Nf6 {[%clk 0:02:46]} 9. O-O {[%clk 0:02:36]} 9... Bd6 {[%clk
0:02:44.6]} 10. d3 {[%clk 0:02:28]} 10... exd3 {[%clk 0:02:41]} 11. Qxd3 {[%clk
0:02:28.9]} 11... O-O {[%clk 0:02:40.3]} 12. Nc3 {[%clk 0:02:27.9]} 12... Rb8
{[%clk 0:02:23.1]} 13. b3 {[%clk 0:02:24.7]} 13... Qe7 {[%clk 0:02:03.1]} 14.
Bb2 {[%clk 0:02:16.6]} 14... Qe5 {[%clk 0:02:00.2]} 15. f4 {[%clk 0:02:05.5]}
15... Qh5 {[%clk 0:01:58.5]} 16. Rad1 {[%clk 0:01:56.6]} 16... dxc4 {[%clk
0:01:47.6]} 17. Qxc4 {[%clk 0:01:55.1]} 17... c5 {[%clk 0:01:46.5]} 18. Ne2
{[%clk 0:01:29.2]} 18... Rb4 {[%clk 0:01:43]} 19. Qc2 {[%clk 0:01:28]} 19... Qg6
{[%clk 0:01:37.8]} 20. Qxg6 {[%clk 0:01:16.5]} 20... hxg6 {[%clk 0:01:36.9]} 21.
Nc3 {[%clk 0:01:08.4]} 21... Re8 {[%clk 0:01:36.3]} 22. Rfe1 {[%clk 0:00:50.5]}
22... c4 {[%clk 0:01:36.3]} 23. Ba3 {[%clk 0:00:43.9]} 23... cxb3 {[%clk
0:01:36]} 24. axb3 {[%clk 0:00:30.7]} 24... Rxb3 {[%clk 0:01:31.3]} 25. Bxd6
{[%clk 0:00:31.6]} 25... Rxc3 {[%clk 0:01:27.9]} 26. Be5 {[%clk 0:00:29.9]}
26... Rc2 {[%clk 0:01:27.5]} 27. Ra1 {[%clk 0:00:24.5]} 27... Nd7 {[%clk
0:01:22.8]} 28. Ra5 {[%clk 0:00:09.7]} 28... Nxe5 {[%clk 0:01:16.5]} 29. fxe5
{[%clk 0:00:10]} 29... c5 {[%clk 0:01:14.8]} 30. Rxa7 {[%clk 0:00:07]} 30...
Rxe5 {[%clk 0:01:14.5]} 31. Ra8+ {[%clk 0:00:07.5]} 31... Kh7 {[%clk 0:01:14.4]}
32. Rc8 {[%clk 0:00:06.8]} 32... Rg5 {[%clk 0:01:13.5]} 33. g4 {[%clk
0:00:06.1]} 33... f5 {[%clk 0:01:13.9]} 34. Re8 {[%clk 0:00:01.5]} 34... fxg4
{[%clk 0:01:13.8]} 35. h4 {[%clk 0:00:02.2]} 35... Rh5 {[%clk 0:01:13.7]} 36.
Re4 {[%clk 0:00:01.9]} 36... Rxh4 {[%clk 0:01:13.5]} 37. Rf1 {[%clk 0:00:02.5]}
37... Kh6 {[%clk 0:01:12.5]} 38. Rf7 {[%clk 0:00:02.1]} 38... Rch2 {[%clk
0:01:05]} 39. Rf8 {[%clk 0:00:01.8]} 39... Rh1+ {[%clk 0:01:00.4]} 40. Kg2
{[%clk 0:00:02.7]} 40... R4h2+ {[%clk 0:00:58.2]} 41. Kg3 {[%clk 0:00:03]} 41...
Rh3+ {[%clk 0:00:58.3]} 42. Kg2 {[%clk 0:00:03.6]} 42... R1h2+ {[%clk
0:00:57.6]} 43. Kg1 {[%clk 0:00:04]} 43... Kg5 {[%clk 0:00:57.3]} 44. Rff4
{[%clk 0:00:01.5]} 44... Rh1+ {[%clk 0:00:55.2]} 45. Kg2 {[%clk 0:00:01.8]}
45... R3h2+ {[%clk 0:00:55.3]} 46. Kg3 {[%clk 0:00:02.7]} 46... Kh5 {[%clk
0:00:53.8]} 47. Re5+ {[%clk 0:00:02.3]} 47... g5 {[%clk 0:00:52.5]} 48. Rff5
{[%clk 0:00:02.8]} 48... Rh3+ {[%clk 0:00:51.2]} 49. Kg2 {[%clk 0:00:03.3]}
49... R1h2+ {[%clk 0:00:50.8]} 50. Kg1 {[%clk 0:00:03.9]} 50... g6 {[%clk
0:00:47.8]} 51. Rf8 {[%clk 0:00:01.4]} 51... Kh6 {[%clk 0:00:48.7]} 52. Re7
{[%clk 0:00:01.5]} 52... Rh1+ {[%clk 0:00:42.1]} 53. Kg2 {[%clk 0:00:02.4]}
53... R1h2+ {[%clk 0:00:39.5]} 54. Kg1 {[%clk 0:00:03]} 54... Rh1+ {[%clk
0:00:34.9]} 55. Kg2 {[%clk 0:00:03.5]} 55... R1h2+ {[%clk 0:00:31.3]} 56. Kg1
{[%clk 0:00:04.1]} 1/2-1/2

[Event "Late-Titled-Tuesday-Blitz-July-09-2024"]
[Site "Chess.com"]
[Date "2024.07.09"]
[Round "1"]
[White "Mariia89"]
[Black "ELPRIMO0O0"]
[Result "0-1"]
[WhiteElo "2245"]
[BlackElo "2603"]
[TimeControl "180+1"]
[EndTime "14:07:57 PDT"]
[Termination "ELPRIMO0O0 won on time"]

1. d4 {[%clk 0:02:57.8]} 1... Nf6 {[%clk 0:02:59.9]} 2. Nf3 {[%clk 0:02:57.8]}
2... c5 {[%clk 0:03:00]} 3. d5 {[%clk 0:02:57.8]} 3... b5 {[%clk 0:03:00.4]} 4.
c4 {[%clk 0:02:54.2]} 4... b4 {[%clk 0:03:00]} 5. g3 {[%clk 0:02:44.7]} 5... g6
{[%clk 0:03:00.3]} 6. Bg2 {[%clk 0:02:43.5]} 6... Bg7 {[%clk 0:03:01.2]} 7. O-O
{[%clk 0:02:43.3]} 7... d6 {[%clk 0:03:01.5]} 8. Re1 {[%clk 0:02:43.4]} 8... O-O
{[%clk 0:03:01.9]} 9. e4 {[%clk 0:02:33.8]} 9... a5 {[%clk 0:02:52.7]} 10. h3
{[%clk 0:02:33.2]} 10... a4 {[%clk 0:02:52.7]} 11. e5 {[%clk 0:02:20.3]} 11...
dxe5 {[%clk 0:02:49.9]} 12. Nxe5 {[%clk 0:02:20.3]} 12... a3 {[%clk 0:02:50]}
13. Nd2 {[%clk 0:02:13.1]} 13... Nfd7 {[%clk 0:02:33.6]} 14. Ndf3 {[%clk
0:02:09.7]} 14... Nxe5 {[%clk 0:02:01.7]} 15. Nxe5 {[%clk 0:02:09.7]} 15... Bf5
{[%clk 0:01:58.3]} 16. g4 {[%clk 0:02:00.4]} 16... Bd7 {[%clk 0:01:50.4]} 17.
Rb1 {[%clk 0:01:33.4]} 17... axb2 {[%clk 0:01:48.5]} 18. Rxb2 {[%clk 0:01:30.8]}
18... Ba4 {[%clk 0:01:47.5]} 19. Qf3 {[%clk 0:01:24.1]} 19... Nd7 {[%clk
0:01:45.1]} 20. Bf4 {[%clk 0:01:19.6]} 20... Nxe5 {[%clk 0:01:33.4]} 21. Bxe5
{[%clk 0:01:19.5]} 21... Bxe5 {[%clk 0:01:34.3]} 22. Rxe5 {[%clk 0:01:20]} 22...
Qd6 {[%clk 0:01:34.6]} 23. Re3 {[%clk 0:01:12.5]} 23... Ra7 {[%clk 0:01:27.1]}
24. h4 {[%clk 0:01:09]} 24... Rfa8 {[%clk 0:01:23.2]} 25. Qe4 {[%clk 0:00:33.2]}
25... Kf8 {[%clk 0:01:17.1]} 26. h5 {[%clk 0:00:28.7]} 26... Bd7 {[%clk
0:01:16.7]} 27. Ree2 {[%clk 0:00:25.4]} 27... Ra3 {[%clk 0:01:08.1]} 28. h6
{[%clk 0:00:18.3]} 28... f6 {[%clk 0:00:48.5]} 29. Bf1 {[%clk 0:00:12.7]} 29...
Rc3 {[%clk 0:00:44.2]} 30. Re3 {[%clk 0:00:09.4]} 30... Raa3 {[%clk 0:00:43.3]}
31. Rbe2 {[%clk 0:00:08.7]} 31... Rxe3 {[%clk 0:00:41.5]} 32. Rxe3 {[%clk
0:00:05.4]} 32... Rxa2 {[%clk 0:00:38.9]} 33. Bd3 {[%clk 0:00:04.1]} 33... b3
{[%clk 0:00:32.3]} 34. Kg2 {[%clk 0:00:03.5]} 34... b2 {[%clk 0:00:28.1]} 35.
Bb1 {[%clk 0:00:03.9]} 35... Ra1 {[%clk 0:00:18.7]} 36. Re2 {[%clk 0:00:04.2]}
36... Bxg4 {[%clk 0:00:17]} 37. Rxb2 {[%clk 0:00:04.1]} 37... Bf5 {[%clk
0:00:17.1]} 38. Qe1 {[%clk 0:00:03.2]} 38... Qf4 {[%clk 0:00:13.2]} 39. Qc3
{[%clk 0:00:02.1]} 39... Rxb1 {[%clk 0:00:10.9]} 40. Rxb1 {[%clk 0:00:02.2]}
40... Bxb1 {[%clk 0:00:11.8]} 41. Qb2 {[%clk 0:00:02.5]} 41... Be4+ {[%clk
0:00:12.2]} 42. Kf1 {[%clk 0:00:02.4]} 42... Bd3+ {[%clk 0:00:11.2]} 43. Ke1
{[%clk 0:00:02.6]} 43... Qe4+ {[%clk 0:00:07]} 44. Kd2 {[%clk 0:00:03.2]} 44...
Qe2+ {[%clk 0:00:06.8]} 45. Kc3 {[%clk 0:00:04.1]} 45... Qxb2+ {[%clk
0:00:07.6]} 46. Kxb2 {[%clk 0:00:04.7]} 46... Bxc4 {[%clk 0:00:08.5]} 0-1